Cogmind - Beta 9.4 @@@ ROGUE MODE // 2020.01.19 @ 22:37:23 Player: Cookie Result: Self-destructed Performance ------------- Evolutions (2) 1000 Regions Visited (6) 1200 Robots Destroyed (15) 75 Value Destroyed (365) 365 Prototype IDs (1) 20 Alien Tech Used (0) 0 Bonus (42) 42 TOTAL SCORE: 2702 Bonus ------- Follower Combat Kills 50 Friendly Fire -8 Cogmind --------- Core Integrity 519/550 Matter 269/300 Energy 230/230 System Corruption 0% Temperature Cool (9) Movement Rolling (100) Ox1 Location -8/Storage Parts ------- > --- POWER (2) -------- Light Nuclear Core Makeshift Power Source > --- PROPULSION (3) --- Wheel Compact Wheel > --- UTILITY (4) ------ High-capacity Storage Unit Sensor Array Signal Interpreter Makeshift Cloaking Device > --- WEAPON (2) ------- Light Assault Rifle > --- INVENTORY (12) --- Improved Ion Engine Makeshift Hacking Suite Makeshift System Shield Skeleton Box Rocket Launcher Peak State ------------ > --- POWER ------------ Light Nuclear Core Makeshift Power Source > --- PROPULSION ------- Wheel Compact Wheel > --- UTILITY ---------- High-capacity Storage Unit Sensor Array Signal Interpreter Makeshift Cloaking Device > --- WEAPON ----------- Beam Rifle Light Assault Rifle > --- INVENTORY -------- Makeshift Cloaking Device Makeshift Hacking Suite Makeshift System Shield Skeleton Box Rocket Launcher [Rating: 22] Favorites ----------- Power Makeshift Power Source Engine Makeshift Power Source Power Core Light Nuclear Core Propulsion Wheel Wheel Wheel Utility Signal Interpreter Device Sensor Array Storage High-capacity Storage Unit Processor Signal Interpreter Weapon Light Assault Rifle Energy Gun EM Pulse Gun Ballistic Gun Light Assault Rifle Build | -11 -10 -10 -10 -9 -8 -8 ------- Run | Scr Mat Min Exi Min Mat Sto Slots Evolved 4 | . . . . . 4 . Power 1 | . . . . . 1 . Propulsion 1 | . . . . . 1 . Utility 2 | . . . . . 2 . Weapon . | . . . . . . . Parts Attached 25 | 7 2 4 5 3 3 1 Power 6 | 2 . 2 1 . 1 . Engine 3 | 2 . . 1 . . . Core 3 | . . 2 . . 1 . Reactor . | . . . . . . . Propulsion 3 | 2 . . . 1 . . Treads . | . . . . . . . Leg . | . . . . . . . Wheel 3 | 2 . . . 1 . . Hover . | . . . . . . . Flight . | . . . . . . . Utility 9 | 1 2 . 3 . 2 1 Device 6 | . 1 . 2 . 2 1 Storage 2 | 1 . . 1 . . . Processor 1 | . 1 . . . . . Hackware . | . . . . . . . Protection . | . . . . . . . Artifact . | . . . . . . . Weapon 7 | 2 . 2 1 2 . . Energy Gun 5 | 1 . 2 1 1 . . Energy Cannon . | . . . . . . . Ballistic Gun 2 | 1 . . . 1 . . Ballistic Cannon . | . . . . . . . Launcher . | . . . . . . . Special Weapon . | . . . . . . . Impact Weapon . | . . . . . . . Slashing Weapon . | . . . . . . . Piercing Weapon . | . . . . . . . Special Melee Weapon . | . . . . . . . Unidentified Prototypes 1 | . . . 1 . . . Parts Lost 3 | . . 1 . . 2 . Power . | . . . . . . . Propulsion . | . . . . . . . Utility 1 | . . . . . 1 . Weapon 2 | . . 1 . . 1 . Highest Loss Streak 2 | . . 1 . . 2 . Average Slot Usage (%) 97 | . 92 96 100 97 85 81 Engine 8 | . 14 1 5 14 9 9 Core 5 | . . 12 8 . 6 9 Wheel 27 | . 28 28 28 27 18 18 Device 7 | . 4 14 9 . 18 18 Storage 7 | . 9 . 4 14 9 9 Processor 13 | . 6 14 14 14 9 9 Energy Gun 12 | . 14 10 14 14 7 . Ballistic Gun 13 | . 14 14 14 11 9 9 Naked Turns . | . . . . . . . Heaviest Build 47 | 10 10 10 39 40 47 44 Greatest Support 26 | 20 20 20 20 26 26 26 Greatest Overweight (x) 1 | . . . 1 1 1 1 Average Overweight (x) . | . . . . 1 1 1 Largest Inventory Capacity 12 | 6 6 4 12 12 12 12 Average Capacity 7 | 5 5 4 6 12 12 12 Most Carried 9 | 4 3 3 8 9 7 5 Average Carried 4 | 1 2 2 4 8 5 5 Final Capacity 12 | 6 4 4 12 12 12 12 Final Carried 8 | 2 2 2 8 8 6 5 Class Distribution -------------------- 97% | Mutant Dominant Class ---------------- Mutant | -10/Materials Mutant | -10/Mines Mutant | -10/Exiles Mutant | -9/Mines Scavenger-Mutant | -8/Materials Mutant | -8/Storage Resources | -11 -10 -10 -10 -9 -8 -8 ----------- Run | Scr Mat Min Exi Min Mat Sto Matter Collected 441 | 250 28 71 . 92 . . Remotely . | . . . . . . . Salvage Created 589 | . 87 198 . 304 . . Parts 34 | . 3 16 . 15 . . Haulers Intercepted . | . . . . . . . Recyclers Shooed 1 | . . . . 1 . . Parts Field Recycled . | . . . . . . . Retrieved Matter . | . . . . . . . Parts Self-Destructed . | . . . . . . . Prevented . | . . . . . . . Kills | -11 -10 -10 -10 -9 -8 -8 ------- Run | Scr Mat Min Exi Min Mat Sto Combat Hostiles Destroyed 11 | . 2 4 . 5 . . Guns 11 | . 2 4 . 5 . . Classes Destroyed 5 | . 1 1 . 3 . . Builder 1 | . . 1 . . . . Tunneler 1 | . . . . 1 . . Recycler 2 | . . . . 2 . . Swarmer 3 | . . . . 3 . . Grunt 8 | . 2 4 . 2 . . Best Kill Streak 6 | . 2 2 . 6 . . Combat Bots Only 5 | . 2 2 . 5 . . Max Kills in Single Turn 1 | . 1 1 . 1 . . Gunslinging . | . . . . . . . Exploded . | . . . . . . . Melee . | . . . . . . . Uniques/NPCs Destroyed . | . . . . . . . Combat | -11 -10 -10 -10 -9 -8 -8 -------- Run | Scr Mat Min Exi Min Mat Sto Damage Taken 664 | . 77 198 . 177 151 61 Core 189 | . 10 58 . 90 16 15 Absorbed by Shields . | . . . . . . . Core Remaining (%) 68 | 100 . . . 36 . . Volleys Fired 45 | . 8 16 . 20 . 1 Largest 2 | . 2 2 . 2 . 1 Hottest 76 | . 70 76 . 76 . 20 Shots Fired 73 | . 16 24 . 32 . 1 Gun 73 | . 16 24 . 32 . 1 Cannon . | . . . . . . . Launcher . | . . . . . . . Special . | . . . . . . . Kinetic 37 | . 8 16 . 12 . 1 Thermal 28 | . 8 6 . 14 . . Explosive . | . . . . . . . Electromagnetic 8 | . . 2 . 6 . . Robot Hit Streak 9 | . 8 9 . 6 . 3 Robot Miss Streak 3 | . 2 2 . 3 . . Penetration Max . | . . . . . . . Secondary Targets 1 | . . . . 1 . . Max Gunslinging Chain 1 | . . . . 1 . . Shots Hit Robots 50 | . 12 17 . 20 . 1 Core Hits 25 | . 4 9 . 11 . 1 Critical Hits 1 | . . . . 1 . . Critical Kills 1 | . . . . 1 . . Critical Parts Destroyed . | . . . . . . . Melee Attacks . | . . . . . . . Impact . | . . . . . . . Slashing . | . . . . . . . Piercing . | . . . . . . . Sneak Attacks . | . . . . . . . Combat Hostiles . | . . . . . . . Follow-up Attacks . | . . . . . . . Damage Inflicted 632 | . 133 206 . 286 . 7 Guns 591 | . 133 196 . 255 . 7 Cannons . | . . . . . . . Explosions 31 | . . . . 31 . . Melee . | . . . . . . . Ramming 10 | . . 10 . . . . Kinetic 224 | . 47 110 . 60 . 7 Thermal 298 | . 86 64 . 148 . . Explosive . | . . . . . . . Electromagnetic 100 | . . 22 . 78 . . Impact . | . . . . . . . Slashing . | . . . . . . . Piercing . | . . . . . . . Highest Corruption . | . . . . . . . Average Corruption . | . . . . . . . Corruption Purged . | . . . . . . . Overload Shots . | . . . . . . . Overflow Damage . | . . . . . . . Projectiles . | . . . . . . . Explosions . | . . . . . . . Melee . | . . . . . . . Knockbacks 1 | . . 1 . . . . Impact 1 | . . 1 . . . . Kinetic . | . . . . . . . Secondary . | . . . . . . . Self-Inflicted Damage 30 | . . 5 . 25 . . Shots 1 | . . . . 1 . . Rammed 1 | . . 1 . . . . Targets Rammed 1 | . . 1 . . . . Kicked . | . . . . . . . Crushed . | . . . . . . . Highest Temperature 141 | . 122 141 . 129 1 3 Average Temperature 60 | . 66 51 . 63 1 3 Received Heat Transfer 261 | . 42 105 . 60 45 9 Siege Activations . | . . . . . . . Robots Corrupted . | . . . . . . . Combat Hostiles . | . . . . . . . Parts Fried 1 | . . . . 1 . . Impact Corruptions . | . . . . . . . Robots Melted . | . . . . . . . Combat Hostiles . | . . . . . . . Parts Melted 1 | . 1 . . . . . Heat Transferred 790 | . 259 185 . 346 . . Parts Sabotaged . | . . . . . . . Parts Stolen . | . . . . . . . Parts Stripped . | . . . . . . . Power Chain Reactions 1 | . . . . 1 . . Missiles Intercepted . | . . . . . . . Alert | -11 -10 -10 -10 -9 -8 -8 ------- Run | Scr Mat Min Exi Min Mat Sto Peak Influence 219 | . 83 219 . 120 32 9 Average Influence 50 | . 41 131 . 8 11 9 Maximum Alert Level 1 | . . 1 . . . . Low Security (%) 88 | 100 100 64 . 100 100 100 Level 1 11 | . . 35 . . . . Level 2 . | . . . . . . . Level 3 . | . . . . . . . Level 4 . | . . . . . . . Level 5 . | . . . . . . . High Security . | . . . . . . . Max Security . | . . . . . . . Squads Dispatched 3 | . 1 1 . . . 1 Investigation . | . . . . . . . Extermination . | . . . . . . . Reinforcement 2 | . 1 . . . . 1 Assault 1 | . . 1 . . . . Garrison . | . . . . . . . Intercept . | . . . . . . . Construction Impeded . | . . . . . . . Haulers Reinforced . | . . . . . . . Stealth | -11 -10 -10 -10 -9 -8 -8 --------- Run | Scr Mat Min Exi Min Mat Sto Distress Signals . | . . . . . . . Communications Jammed . | . . . . . . . Distress Signals . | . . . . . . . Times Spotted 26 | . 5 8 . 6 4 3 Peak Tracking Total 6 | . 2 2 . 2 6 2 Tactical Retreats 3 | . 1 1 . 1 . . Traps | -11 -10 -10 -10 -9 -8 -8 ------- Run | Scr Mat Min Exi Min Mat Sto Traps Triggered . | . . . . . . . Indirectly . | . . . . . . . Trap Hack Attempts . | . . . . . . . Triggered . | . . . . . . . Disarmed . | . . . . . . . Reprogrammed . | . . . . . . . Reused . | . . . . . . . Traps Extracted . | . . . . . . . Installed . | . . . . . . . Triggered . | . . . . . . . Machines | -11 -10 -10 -10 -9 -8 -8 ---------- Run | Scr Mat Min Exi Min Mat Sto Machines Disabled . | . . . . . . . Max in Single Turn . | . . . . . . . Machines Sabotaged . | . . . . . . . Garrisons Compromised . | . . . . . . . Overloaded Fab Kills . | . . . . . . . Fab Network Shutdowns . | . . . . . . . Hacking | -11 -10 -10 -10 -9 -8 -8 --------- Run | Scr Mat Min Exi Min Mat Sto Machines Accessed 8 | . 2 . 4 . 1 1 Terminals 4 | . 2 . . . 1 1 Fabricators . | . . . . . . . Repair Stations . | . . . . . . . Recycling Units . | . . . . . . . Scanalyzers . | . . . . . . . Garrison Access . | . . . . . . . Total Hacks 63 | . 7 . 48 . 4 4 Successful 54 | . 4 . 48 . 2 . Failed 9 | . 3 . . . 2 4 Catastrophic . | . . . . . . . Database Lockouts . | . . . . . . . Manual 6 | . 5 . 1 . . . Terminals 15 | . 7 . . . 4 4 Fabricators . | . . . . . . . Repair Stations . | . . . . . . . Recycling Units . | . . . . . . . Scanalyzers . | . . . . . . . Garrison Access . | . . . . . . . Terminal Hacks 54 | . 4 . 48 . 2 . Record 48 | . . . 48 . . . Part Schematic 1 | . 1 . . . . . Branch Access Points 2 | . 1 . . . 1 . Terminal Index 1 | . 1 . . . . . Dispatch Records 1 | . 1 . . . . . Zone Layout 1 | . . . . . 1 . Fabricator Hacks . | . . . . . . . Repair Station Hacks . | . . . . . . . Recycling Unit Hacks . | . . . . . . . Scanalyzer . | . . . . . . . Garrison Access Hacks . | . . . . . . . Unauthorized Hacks 1 | . 1 . . . . . Terminals . | . . . . . . . Fabricators . | . . . . . . . Repair Stations . | . . . . . . . Recycling Units . | . . . . . . . Scanalyzers . | . . . . . . . Garrison Access . | . . . . . . . Data Cores Recovered . | . . . . . . . Used . | . . . . . . . Hacking Detections 3 | . 1 . . . 1 1 Full Trace Events . | . . . . . . . Feedback Events . | . . . . . . . Feedback Blocked . | . . . . . . . Robot Schematics Acquired . | . . . . . . . Robots Built . | . . . . . . . Matter . | . . . . . . . Time . | . . . . . . . Total Robot Build Rating . | . . . . . . . Part Schematics Acquired 1 | . 1 . . . . . Parts Built . | . . . . . . . Matter . | . . . . . . . Time . | . . . . . . . Total Part Build Rating . | . . . . . . . Parts Repaired . | . . . . . . . Time . | . . . . . . . Parts Recycled . | . . . . . . . Recycled Matter . | . . . . . . . Retrieved Matter . | . . . . . . . Retrieved Components . | . . . . . . . Parts Scanalyzed . | . . . . . . . Part Schematics Acquired . | . . . . . . . Parts Damaged . | . . . . . . . Bothacking | -11 -10 -10 -10 -9 -8 -8 ------------ Run | Scr Mat Min Exi Min Mat Sto Used RIF Installer . | . . . . . . . Robots Hacked . | . . . . . . . Non-combat . | . . . . . . . Combat . | . . . . . . . Robot Hacks Applied . | . . . . . . . Relay Couplers Released . | . . . . . . . Robots Rewired 1 | . . . 1 . . . Allies Hacked . | . . . . . . . Hacks Repelled . | . . . . . . . Allies | -11 -10 -10 -10 -9 -8 -8 -------- Run | Scr Mat Min Exi Min Mat Sto Total Allies 5 | . . 4 1 . . . Largest Group 4 | . . 4 1 . . . Highest-Rated Group 71 | . . 71 8 . . . Highest-Rated Ally 31 | . . 31 8 . . . Total Orders . | . . . . . . . Ally Attacks 23 | . . 23 . . . . Total Damage 307 | . . 307 . . . . Kills 4 | . . 4 . . . . Allies Corrupted . | . . . . . . . Allies Melted . | . . . . . . . Intel | -11 -10 -10 -10 -9 -8 -8 ------- Run | Scr Mat Min Exi Min Mat Sto Robot Analysis Total . | . . . . . . . Derelict Logs Recovered 3 | . . 2 . 1 . . Drone Launches . | . . . . . . . Drone Recoveries . | . . . . . . . Exploration | -11 -10 -10 -10 -9 -8 -8 ------------- Run | Scr Mat Min Exi Min Mat Sto Turns Passed 2130 | 59 150 457 701 675 59 29 Spaces Moved 2156 | 48 126 451 798 651 56 26 Core 13 | 13 . . . . . . Treads . | . . . . . . . Legs . | . . . . . . . Wheels 2143 | 35 126 451 798 651 56 26 Hover . | . . . . . . . Flight . | . . . . . . . Fastest Speed 50 | 50 80 80 80 90 100 100 Average Speed 85 | 71 80 80 82 92 100 100 Slowest Speed 100 | 80 80 80 90 100 100 100 Overloaded Moves . | . . . . . . . Propulsion Burnouts . | . . . . . . . Robots Hopped . | . . . . . . . Cave-ins Triggered . | . . . . . . . Exploration Rate (%) 42 | 3 24 65 94 91 7 11 Regions Visited 6 Branch Regions 4 Pre-discovered Areas 3 | . . 1 1 1 . . Known Exits Taken 5 | . 1 1 1 1 1 . Unknown Exits Taken 1 | 1 . . . . . . Scrap Searched 1 | . . . . 1 . . Spaces Dug . | . . . . . . . Terrain Destroyed 5 | . . . . 5 . . Melee . | . . . . . . . Projectile . | . . . . . . . AOE 5 | . . . . 5 . . Actions | -11 -10 -10 -10 -9 -8 -8 --------- Run | Scr Mat Min Exi Min Mat Sto Total 2380 | 72 161 527 838 695 59 28 Wait 95 | 9 21 49 . 16 . . Move 2150 | 47 125 450 797 650 55 26 Hop . | . . . . . . . Pick Up 28 | 8 3 4 9 3 1 . Fast Attach 3 | 1 . . 2 . . . Attach 20 | 6 2 4 1 3 3 1 Detach 1 | . . . 1 . . . Swap 2 | . . . 2 . . . Drop 14 | 1 2 3 5 3 . . Fire 45 | . 8 16 . 20 . 1 Melee . | . . . . . . . Ram 1 | . . 1 . . . . Kick . | . . . . . . . Crush . | . . . . . . . Escape Stasis . | . . . . . . . Rewire 21 | . . . 21 . . . Trap . | . . . . . . . Miscellaneous . | . . . . . . . Route ------- -11/Scrapyard -10/Materials (discovered 2 exits: *Min x2) -10/Mines (discovered 2 exits: *Mat / *Exi) -10/Exiles (discovered 2 exits: *Min x2) -9/Mines -8/Materials (discovered 2 exits: *Sto x2) -8/Storage History --------- Turn | Location | Event 36 | -11/Scrapyard | Discovered new exit (range 15) 60 | -11/Scrapyard | Entered Materials 134 | -10/Materials | Discovered new exit (range 15) 147 | -10/Materials | Identified exit to Mines 210 | -10/Materials | Entered Mines 212 | -10/Mines | Found a hidden stash of uninstalled traps 305 | -10/Mines | Build established: Mutant 307 | -10/Mines | Discovered new exit (range 9) 308 | -10/Mines | Met a Derelict testing a Signal Generator 313 | -10/Mines | Identified exit to Materials 385 | -10/Mines | Assisted by bots powering up and referring to "LRC-V3" 412 | -10/Mines | Assisted by bots powering up and referring to "LRC-V3" 468 | -10/Mines | Learned Materials security intel 559 | -10/Mines | Joined a pair of Derelicts in attacking an 0b10 outpost 632 | -10/Mines | Deemed a non-threat by the Exiles lab entrance 632 | -10/Mines | Discovered new exit (range 5) 635 | -10/Mines | Identified exit to Exiles 667 | -10/Mines | Entered Exiles 667 | -10/Exiles | Found Exiles lab destroyed 688 | -10/Exiles | Discovered new exit (range 14) 696 | -10/Exiles | Identified exit to Mines 802 | -10/Exiles | Opened EX-Vault 806 | -10/Exiles | Found Prototype Device 807 | -10/Exiles | Identified Skeleton Box 951 | -10/Exiles | Learned location of Zion (-6) 1355 | -10/Exiles | Discovered exit to Mines (range 14) 1368 | -10/Exiles | Entered Mines 1375 | -9/Mines | Received a Rocket Launcher from a helpful Derelict 1554 | -9/Mines | Learned location of Storage (-8) 1649 | -9/Mines | Learned Materials terminal intel 1653 | -9/Mines | Discovered new exit (range 11) 1660 | -9/Mines | Identified exit to Materials 1737 | -9/Mines | Core integrity fell below 50% 2043 | -9/Mines | Entered Materials 2043 | -8/Materials | Evolved 4 slots: Power x1, Propulsion x1, Utility x2 2045 | -8/Materials | Loaded intel: 12 terminal locations 2066 | -8/Materials | Identified exit to Storage 2102 | -8/Materials | Entered Storage 2131 | -8/Storage | Self-destructed Last Messages --------------- (93,78) Storage (13,81) Storage Map updated. 02079_ Acquired Imp. Ion Engine. 02083_ K-01 Serf collects debris. 02094_ Beam Rifle destroyed. 02097_ Slug penetrates Wall. 02100_ Mak. Cloaking Device destroyed. 02100_ Slug penetrates Terminal. 02100_ Terminal disabled. 02101_ K-01 Serf collects debris. LOCATION=STORAGE GOAL=ESCAPE 02107_ O-16 Technician: "IFF HANDSHAKE FAILED. SECURING TERMINAL." 02107_ O-16 Technician uses terminal to summon reinforcements. 02107_ ALERT: Hostiles spotted, dispatching reinforcements to Terminal S002. 02107_ O-16 Technician locks terminal. 02117_ Connecting with Terminal... 02131_ Penetrated by Slug. Map ----- +----------------------------------------------------+ | ?????????????????????????????????????????????????? | | ?????????????????????????????????????????????????? | | ?????????????????????????????????????????????????? | | ?????????????????????????????????????????????????? | | ?????????????????????????????????????????????????? | | ?????????????????????????????????????????????????? | | ?????????????????????????????????????????????????? | | ?????????????????????????????????????????????????? | | ?????????????????????????????????????????????????? | | ????????????????????????????? ???????????????????? | | ????????????????????????????? #??????????????????? | | ????????????????????????????? ??????????????????? | | ????????????????????????????? ??????????????????? | | ????????????????????????????? ??????????????????? | | ????????????????????????????? ??????????????????? | | ????????????????????????????? #?????????????????? | | ????????????????????????????? #?????????????????? | | ?????????????????????????????# #?????????????????? | | ?????????????????????????????# #?????????????????? | | ?????????????????????????????# #?????????????????? | | ?????????????????????##??????#x#?????????????????? | | ?????????????????#####Y#?##### #??????? ???????? | | ?????????????????"""" ?+ +??????? #??????? | | ?????????????????"""" # #??????? #??????? | | ?????????????????"""" # #??????? #??????? | | ?????????????????"""" @ #X?????? #??????? | | ???????????????# ##### #??????# #??????? | | ???????????????# ????# #??????# #??????? | | ???????????????+ ?????# #####??# #??????? | | ???????????????# h ?????# #"""#??# #??????? | | ???????????????########??????#+#"T"#### #??????? | | ?????????????????????????????# # #??????? | | ?????????????????????????????# "" """ # #??????? | | ?????????????????????????????# "T """ # #??????? | | ?????????????????????????????# "" """ # #??????? | | ?????????????????????????????# + #??????? | | ?????????????????????????????# """ # #??????? | | ?????????????????????????????# """ # #??????? | | ?????????????????????????????# !! """ # #??????? | | ?????????????????????????????# ! # #??????? | | ?????????????????????????????########## #??????? | | ??????????????????????????????????????#####??????? | | ?????????????????????????????????????????????????? | | ?????????????????????????????????????????????????? | | ?????????????????????????????????????????????????? | | ?????????????????????????????????????????????????? | | ?????????????????????????????????????????????????? | | ?????????????????????????????????????????????????? | | ?????????????????????????????????????????????????? | | | +----------------------------------------------------+ Best States ------------- Heat Dissipation 31 Energy Generation 24 Energy Capacity 230 Matter Stores 300 Matter Capacity 300 Sight Range 16 Robot Scan Range 10 Terrain Scan Density 10 Cloak Strength 3 Evasion (%) 50 Item Schematics ----------------- Flight Unit | -10/Materials | Hacked Robot Schematics ------------------ None Fabricated ------------ Nothing Alien Tech Used ----------------- None Achievements -------------- A New Friend Challenges ------------ None Game ------ Seed PortableAssemblyMegatreads Manual? 0 Play Time 00:22:53 Cumulative 43.4 hours Start 2020.01.19 @ 22:14:31 End 2020.01.19 @ 22:37:23 Sessions 1 Manual Loads 0 Difficulty Rogue Special Mode None Game No. 69 Rogue 69 Adventurer 0 Explorer 0 Win Type - Total 1 Types 1/0/0/0/0/0/0 Lore% 32 Gallery% 35 Achievement% 30 Wizard Run 0 Options --------- ASCII 0 Keyboard 0 Movement Mouse Keybinds 0 Fullscreen 1 Font 18/SmallcapsGlow Map View 76x50 Tactical HUD 1 Map Filters NONE Filters NONE Steam 1 RUN: 73ab318d-c843-43bf-bc8c-42c5fa948bc5